Cogmind - Beta 10.2 @@@ ROGUE MODE // 2021.11.20 @ 23:57:02 Player: Jezoensis Result: Self-destructed Performance ------------- Evolutions (5) 2500 Regions Visited (13) 2600 Robots Destroyed (112) 560 Value Destroyed (4717) 4717 Prototype IDs (31) 620 Alien Tech Used (0) 0 Bonus (3115) 3115 TOTAL SCORE: 14112 Bonus ------- High Alert Combat Kills 43 Entered Garrisons 800 Used RIF Installer 2000 Aligned with FarCom 300 Friendly Fire -28 Cogmind --------- Core Integrity 836/1000 Matter 6/300 Energy 310/310 System Corruption 0% Temperature Cool (0) Movement Treading (180) Ox1 Location -5/Factory Parts ------- > --- POWER (2) -------- Heavy Deuterium Engine > --- PROPULSION (4) --- Light Treads Light Treads Flexi-carbon Leg > --- UTILITY (8) ------ Large Storage Unit Large Storage Unit Large Storage Unit Enhanced Optical Array Improved Terrain Scan Processor Weapon Cycler Thermal Shield Relay Coupler [NC] (28) > --- WEAPON (3) ------- Gauss Rifle Gauss Rifle KE Penetrator > --- INVENTORY (22) --- Improved Deuterium Engine Heavy Deuterium Engine Improved Heat Sink High-capacity Storage Unit Improved Energy Well (600) Large Matter Pod (0) Advanced Signal Interpreter Improved Terrain Scanner Long-range Terrain Scanner Improved Light Armor Plating Focal Shield System Backup Module Long-range Tractor Beam Heavy Plasma Cannon Gauss Rifle Gauss Rifle Flak Gun Heavy Rocket Launcher Improved Remote Datajack Improved Remote Datajack Field Lobotomy Kit Power Sword Peak State ------------ > --- POWER ------------ Heavy Deuterium Engine > --- PROPULSION ------- Light Treads Light Treads Flexi-carbon Leg Flexi-carbon Leg > --- UTILITY ---------- Improved Heat Sink Large Storage Unit Large Storage Unit Large Storage Unit Enhanced Optical Array Improved Terrain Scan Processor Thermal Shield Relay Coupler [NC] > --- WEAPON ----------- Gauss Rifle Gauss Rifle KE Penetrator > --- INVENTORY -------- Improved Deuterium Engine Heavy Deuterium Engine High-capacity Storage Unit Improved Energy Well Large Matter Pod Advanced Signal Interpreter Improved Terrain Scanner Long-range Terrain Scanner Weapon Cycler Improved Light Armor Plating Focal Shield System Backup Module Long-range Tractor Beam Heavy Plasma Cannon Gauss Rifle Gauss Rifle Flak Gun Heavy Rocket Launcher Improved Remote Datajack Improved Remote Datajack Field Lobotomy Kit Power Sword [Rating: 59] Favorites ----------- Power Heavy Deuterium Engine Engine Heavy Deuterium Engine Power Core Light Nuclear Core Reactor Cold Fusion Reactor Propulsion Light Treads Treads Light Treads Leg Flexi-carbon Leg Utility Large Storage Unit Device Improved Terrain Scanner Storage Large Storage Unit Processor Improved Terrain Scan Processor Hackware Relay Coupler [NC] Protection Improved Medium Armor Plating Weapon Shock Rifle Energy Gun Shock Rifle Energy Cannon Heavy Plasma Cannon Ballistic Gun Gauss Rifle Ballistic Cannon Improved Light Cannon Launcher Shock Bomb Launcher Special Weapon Mining Laser Slashing Weapon Power Sword Build | -11 -10 -10 -10 -9 -8 -8 -8 -8 -7 -7 -6 -6 -5 ------- Run | Scr Mat Min Exi Min Mat Gar Mat Gar Fac Gar Fac Gar Fac Slots Evolved 10 | . . . . . 4 . . . 2 . 2 . 2 Power 1 | . . . . . . . . . . . . . 1 Propulsion 2 | . . . . . 1 . . . 1 . . . . Utility 6 | . . . . . 2 . . . 1 . 2 . 1 Weapon 1 | . . . . . 1 . . . . . . . . Parts Attached 206 | 7 5 8 2 . 44 18 7 4 11 11 21 30 38 Power 13 | 1 1 . . . 4 2 . 1 2 . 2 . . Engine 11 | 1 1 . . . 4 2 . . 2 . 1 . . Core 1 | . . . . . . . . 1 . . . . . Reactor 1 | . . . . . . . . . . . 1 . . Propulsion 31 | 2 1 . . . 10 4 2 . 2 . 2 4 4 Treads 29 | 2 1 . . . 10 4 2 . 2 . 2 4 2 Leg 2 | . . . . . . . . . . . . . 2 Wheel . | . . . . . . . . . . . . . . Hover . | . . . . . . . . . . . . . . Flight . | . . . . . . . . . . . . . . Utility 83 | 2 1 1 2 . 9 5 2 3 4 7 11 16 20 Device 62 | 1 . 1 1 . 4 5 2 3 2 7 6 14 16 Storage 8 | 1 1 . 1 . 1 . . . 1 . . 2 1 Processor 6 | . . . . . 1 . . . . . 3 . 2 Hackware 3 | . . . . . . . . . . . 2 . 1 Protection 4 | . . . . . 3 . . . 1 . . . . Artifact . | . . . . . . . . . . . . . . Weapon 79 | 2 2 7 . . 21 7 3 . 3 4 6 10 14 Energy Gun 26 | 1 1 4 . . 7 3 1 . 2 1 3 3 . Energy Cannon 2 | . . . . . . . . . . . . 1 1 Ballistic Gun 18 | 1 . . . . 4 3 1 . 1 1 . 2 5 Ballistic Cannon 4 | . . . . . 4 . . . . . . . . Launcher 12 | . 1 2 . . 1 1 1 . . 2 . 4 . Special Weapon 11 | . . 1 . . 5 . . . . . 2 . 3 Impact Weapon . | . . . . . . . . . . . . . . Slashing Weapon 6 | . . . . . . . . . . . 1 . 5 Piercing Weapon . | . . . . . . . . . . . . . . Special Melee Weapon . | . . . . . . . . . . . . . . Unidentified Prototypes 6 | . . 1 . . 1 . . . 1 . 1 . 2 Parts Lost 28 | . . 1 . 1 7 4 . . 2 1 . 7 5 Power 2 | . . . . . . 2 . . . . . . . Propulsion 9 | . . . . . 2 . . . . . . 3 4 Utility 1 | . . . . . . . . . . 1 . . . Weapon 16 | . . 1 . 1 5 2 . . 2 . . 4 1 Highest Loss Streak 4 | . . 1 . 1 2 4 . . 2 1 . 3 4 Average Slot Usage (%) 97 | . 100 100 100 92 94 98 100 100 100 100 100 99 91 Engine 8 | . 14 14 14 14 8 8 9 5 3 7 6 6 5 Treads 25 | . 28 28 28 28 26 27 27 27 30 30 26 25 14 Device 10 | . 14 14 14 14 8 9 9 9 7 9 12 12 10 Storage 15 | . 14 14 14 14 18 18 18 18 15 15 13 13 17 Processor 7 | . . . . . 8 9 9 9 7 7 13 13 11 Hackware 1 | . . . . . . . . . . . 6 6 5 Energy Gun 10 | . 14 26 28 20 13 14 8 9 8 4 5 5 1 Ballistic Gun 8 | . 14 . . . 2 12 18 18 13 14 13 6 13 Ballistic Cannon 1 | . . . . . 6 . . . . . . . . Naked Turns . | . . . . . . . . . . . . . . Heaviest Build 83 | 14 18 19 27 27 56 54 54 50 78 83 72 78 77 Greatest Support 80 | 40 40 40 40 40 62 60 60 60 80 80 80 80 80 Greatest Overweight (x) 2 | . . . . . 2 . . . . 1 . . 1 Average Overweight (x) . | . . . . . . . . . . . . . . Largest Inventory Capacity 24 | 6 8 8 10 10 16 16 16 16 18 18 18 24 22 Average Capacity 15 | 4 6 8 8 10 16 16 16 16 17 18 18 18 22 Most Carried 22 | 4 8 8 10 10 16 16 16 16 18 18 18 19 22 Average Carried 14 | 2 5 7 8 10 12 15 15 16 16 17 16 16 20 Final Capacity 22 | 6 8 8 10 10 16 16 16 16 18 18 18 22 22 Final Carried 22 | 4 8 8 10 10 16 16 16 16 18 17 18 19 22 Class Distribution -------------------- 52% | Scavenger-Skirmisher 18% | Mutant 16% | Scavenger-Mutant 5% | Hauler-Skirmisher 4% | Skirmisher Dominant Class ---------------- Mutant | -10/Materials Scavenger-Mutant | -10/Mines Scavenger-Mutant | -10/Exiles Mutant | -9/Mines Scavenger-Skirmisher | -8/Materials Scavenger-Skirmisher | -8/Garrison Scavenger-Skirmisher | -8/Materials Scavenger-Skirmisher | -8/Garrison Scavenger-Skirmisher | -7/Factory Scavenger-Skirmisher | -7/Garrison Scavenger-Skirmisher | -6/Factory Scavenger-Skirmisher | -6/Garrison Hauler-Skirmisher | -5/Factory Resources | -11 -10 -10 -10 -9 -8 -8 -8 -8 -7 -7 -6 -6 -5 ----------- Run | Scr Mat Min Exi Min Mat Gar Mat Gar Fac Gar Fac Gar Fac Matter Collected 3712 | 300 124 75 92 . 580 375 97 102 75 570 91 847 384 Remotely 606 | . . . . . . . . . . . . 493 113 Salvage Created 4518 | 222 371 154 . 103 932 472 105 51 75 586 152 811 484 Parts 246 | 17 17 21 . 3 47 25 6 . 7 35 11 34 23 Haulers Intercepted 4 | . 2 . . . 1 . 1 . . . . . . Recyclers Shooed 1 | 1 . . . . . . . . . . . . . Parts Field Recycled . | . . . . . . . . . . . . . . Retrieved Matter . | . . . . . . . . . . . . . . Parts Self-Destructed . | . . . . . . . . . . . . . . Prevented . | . . . . . . . . . . . . . . Kills | -11 -10 -10 -10 -9 -8 -8 -8 -8 -7 -7 -6 -6 -5 ------- Run | Scr Mat Min Exi Min Mat Gar Mat Gar Fac Gar Fac Gar Fac Combat Hostiles Destroyed 90 | . 5 8 . 2 18 12 3 1 1 14 2 18 6 Guns 48 | . 4 3 . 1 8 8 . 1 1 8 2 7 5 Cannons 8 | . . . . . 7 . . . . . . . 1 AOE 31 | . 1 5 . . 2 4 3 . . 6 . 10 . Classes Destroyed 13 | 2 3 1 . 1 3 1 1 . . . . 1 . Worker 2 | . . . . . . . 1 . . . . . 1 Builder 2 | . . . . . 2 . . . . . . . . Tunneler 6 | 5 . 1 . . . . . . . . . . . Hauler 4 | . 2 . . . 1 . 1 . . . . . . Recycler 2 | 1 . . . . 1 . . . . . . . . Watcher 6 | . 1 . . . 1 . . . . . 1 . 3 Swarmer 19 | . . 4 . . . 4 . . . 7 . 4 . Grunt 43 | . 5 4 . 1 11 2 3 1 . 7 . 7 2 Brawler 2 | . . . . . . 2 . . . . . . . Duelist 5 | . . . . 1 . 1 . . . . . 3 . Sentry 13 | . . . . . 5 3 . . 1 . 2 2 . Specialist 1 | . . . . . . . . . . . . 1 . Hunter 7 | . . . . . 2 . . . . . . 1 4 Best Kill Streak 9 | 4 3 5 . 1 4 5 3 1 1 6 1 9 3 Combat Bots Only 9 | . 2 4 . 1 4 5 3 1 1 6 1 9 2 Max Kills in Single Turn 3 | 1 1 2 . 1 2 3 3 1 1 2 1 3 1 Gunslinging 1 | . . . . . . 1 . . . . . . . Exploded 3 | . 1 2 . . 2 2 3 . . 2 . 3 . Melee . | . . . . . . . . . . . . . . Uniques/NPCs Destroyed . | . . . . . . . . . . . . . . Combat | -11 -10 -10 -10 -9 -8 -8 -8 -8 -7 -7 -6 -6 -5 -------- Run | Scr Mat Min Exi Min Mat Gar Mat Gar Fac Gar Fac Gar Fac Damage Taken 5145 | . 244 127 . 128 1078 625 107 90 140 713 236 843 814 Core 565 | . 59 11 . 12 137 15 . . 18 44 22 83 164 Absorbed by Shields . | . . . . . . . . . . . . . . Core Remaining (%) 83 | 100 . . . 67 . . . 72 . 91 . 87 . Volleys Fired 264 | 10 24 10 . 13 63 17 6 8 3 35 11 29 35 Largest 3 | 2 2 2 . 2 3 3 3 3 3 3 3 3 3 Hottest 168 | 60 60 105 . 105 150 128 101 103 155 133 133 168 168 Shots Fired 550 | 20 47 14 . 16 140 42 11 22 9 63 28 50 88 Gun 418 | 20 46 8 . 16 79 38 8 22 9 44 26 26 76 Cannon 56 | . . . . . 50 . . . . . . 1 5 Launcher 56 | . 1 3 . . 3 4 3 . . 19 . 23 . Special 20 | . . 3 . . 8 . . . . . 2 . 7 Kinetic 266 | 10 23 . . . 60 15 6 15 5 32 18 14 68 Thermal 76 | . . 7 . 3 35 . . . 1 12 8 5 5 Explosive 21 | . 1 3 . . 3 4 3 . . . . 7 . Electromagnetic 178 | 10 23 4 . 13 42 23 2 7 3 19 . 24 8 Robot Hit Streak 32 | 9 12 3 . 12 18 24 32 3 12 5 10 12 15 Robot Miss Streak 7 | 1 4 2 . 2 4 1 . 3 . 7 5 5 4 Penetration Max 1 | . . . . . 1 1 . . . . . . 1 Secondary Targets 6 | . 1 . . . . 1 . . . 2 . 1 1 Max Gunslinging Chain 1 | . 1 . . . . 1 . . . 1 . 1 1 Shots Hit Robots 362 | 15 30 5 . 12 90 31 8 11 9 42 27 32 50 Core Hits 248 | 7 13 12 . 4 52 17 8 3 4 35 14 50 29 Critical Hits 7 | . . . . . 2 2 . . 1 . . . 2 Critical Kills 2 | . . . . . 1 1 . . . . . . . Critical Parts Destroyed 4 | . . . . . 1 1 . . . . . . 2 Melee Attacks 6 | . . . . . . . . . . . 1 . 5 Impact . | . . . . . . . . . . . . . . Slashing 6 | . . . . . . . . . . . 1 . 5 Piercing . | . . . . . . . . . . . . . . Sneak Attacks . | . . . . . . . . . . . . . . Combat Hostiles . | . . . . . . . . . . . . . . Follow-up Attacks . | . . . . . . . . . . . . . . Damage Inflicted 9650 | 204 491 474 . 181 1806 1137 597 196 137 1016 394 1942 1075 Guns 4770 | 179 390 49 . 179 925 611 94 196 137 287 394 326 1003 Cannons 733 | . . . . . 632 . . . . . . 34 67 Explosions 4137 | 25 100 423 . . 249 526 503 . . 729 . 1582 . Melee . | . . . . . . . . . . . . . . Ramming 10 | . 1 2 . 2 . . . . . . . . 5 Kinetic 2925 | 73 171 . . . 781 249 57 102 72 196 215 138 871 Thermal 977 | 25 39 . . 48 321 . . . 22 91 179 185 67 Explosive 2565 | . 61 423 . . 127 526 503 . . . . 925 . Electromagnetic 3173 | 106 219 49 . 131 577 362 37 94 43 729 . 694 132 Impact . | . . . . . . . . . . . . . . Slashing . | . . . . . . . . . . . . . . Piercing . | . . . . . . . . . . . . . . Highest Corruption 4 | . . . . . . . . . 4 4 . . 1 Average Corruption 2 | . . . . . . . . . 4 4 . . 1 Corruption Purged 1 | . . . . . . . . . . . . . 1 Effects 17 | . . . . . . . . . 3 14 . . . Message Errors 2 | . . . . . . . . . 1 1 . . . Matter Fused 3 | . . . . . . . . . 2 1 . . . Heat Flow Errors 2 | . . . . . . . . . . 2 . . . Energy Discharges 2 | . . . . . . . . . . 2 . . . Data Loss (minor) 3 | . . . . . . . . . . 3 . . . Targeting Errors 5 | . . . . . . . . . . 5 . . . Overload Shots . | . . . . . . . . . . . . . . Overflow Damage 153 | . . . . . . 43 79 . . 2 . 29 . Projectiles . | . . . . . . . . . . . . . . Explosions 153 | . . . . . . 43 79 . . 2 . 29 . Melee . | . . . . . . . . . . . . . . Knockbacks 7 | . . . . . 7 . . . . . . . . Impact . | . . . . . . . . . . . . . . Kinetic 7 | . . . . . 7 . . . . . . . . Secondary . | . . . . . . . . . . . . . . Self-Inflicted Damage 186 | . . 37 . . 31 . . . . 24 . 94 . Shots 14 | . . 1 . . 2 . . . . 3 . 8 . Rammed 5 | . 1 1 . 1 . . . . . . . . 2 Targets Rammed 5 | . 1 1 . 1 . . . . . . . . 2 Kicked . | . . . . . . . . . . . . . . Crushed . | . . . . . . . . . . . . . . Highest Temperature 457 | . 81 102 . 207 457 300 28 296 169 332 164 92 349 Average Temperature 102 | . 41 34 . 137 142 84 12 150 77 92 38 26 91 Received Heat Transfer 1443 | . 135 36 . 72 360 90 36 54 36 189 78 243 114 Effects 2 | . . . . . . . . . . 1 . . 1 Shutdowns 1 | . . . . . . . . . . 1 . . . Energy Bleed 1 | . . . . . . . . . . . . . 1 Siege Activations . | . . . . . . . . . . . . . . Robots Corrupted 2 | . . . . 1 . . . . . . . 1 . Combat Hostiles 2 | . . . . 1 . . . . . . . 1 . Parts Fried 15 | . . . . 1 . 2 . . . 4 . 7 1 Impact Corruptions . | . . . . . . . . . . . . . . Robots Melted 1 | . . . . . 1 . . . . . . . . Combat Hostiles 1 | . . . . . 1 . . . . . . . . Parts Melted 1 | . . . . . . . . . . . 1 . . Heat Transferred 2000 | . 50 . . 111 814 . . . 50 200 400 275 100 Parts Sabotaged . | . . . . . . . . . . . . . . Parts Stolen . | . . . . . . . . . . . . . . Parts Stripped . | . . . . . . . . . . . . . . Power Chain Reactions 4 | 1 1 . . . . . . . . 1 . 1 . Missiles Intercepted . | . . . . . . . . . . . . . . Alert | -11 -10 -10 -10 -9 -8 -8 -8 -8 -7 -7 -6 -6 -5 ------- Run | Scr Mat Min Exi Min Mat Gar Mat Gar Fac Gar Fac Gar Fac Peak Influence 469 | 30 215 273 . 40 177 440 353 244 143 409 324 469 342 Initial 245 | . 19 83 . . 15 102 214 229 128 100 214 103 245 Average 196 | 14 147 200 . 20 54 294 266 236 137 278 229 329 248 Maximum Alert Level 2 | . 1 1 . . . 2 1 1 . 2 1 2 1 Low Security (%) 50 | 100 65 39 . 100 100 . . . 100 34 22 24 41 Level 1 42 | . 34 60 . . . 87 100 100 . 56 77 20 58 Level 2 7 | . . . . . . 12 . . . 8 . 55 . Level 3 . | . . . . . . . . . . . . . . Level 4 . | . . . . . . . . . . . . . . Level 5 . | . . . . . . . . . . . . . . High Security . | . . . . . . . . . . . . . . Max Security . | . . . . . . . . . . . . . . Squads Dispatched 11 | . 1 1 . . 4 . 1 . 1 . . . 3 Investigation 3 | . 1 . . . . . 1 . . . . . 1 Extermination 1 | . . . . . . . . . 1 . . . . Reinforcement 5 | . . . . . 3 . . . . . . . 2 Assault 1 | . . 1 . . . . . . . . . . . Garrison 1 | . . . . . 1 . . . . . . . . Intercept . | . . . . . . . . . . . . . . Construction Impeded 2 | . . . . . 1 . . . . . . . 1 Haulers Reinforced . | . . . . . . . . . . . . . . Stealth | -11 -10 -10 -10 -9 -8 -8 -8 -8 -7 -7 -6 -6 -5 --------- Run | Scr Mat Min Exi Min Mat Gar Mat Gar Fac Gar Fac Gar Fac Distress Signals 5 | . 1 . . . 4 . . . . . . . . Communications Jammed . | . . . . . . . . . . . . . . Distress Signals . | . . . . . . . . . . . . . . Times Spotted 124 | . 6 10 . 2 28 11 5 2 1 21 7 19 12 Peak Tracking Total 6 | . 3 4 . 2 5 4 3 2 1 5 2 6 4 Tactical Retreats 7 | . . 1 . . 1 . . . . 3 . 1 1 Traps | -11 -10 -10 -10 -9 -8 -8 -8 -8 -7 -7 -6 -6 -5 ------- Run | Scr Mat Min Exi Min Mat Gar Mat Gar Fac Gar Fac Gar Fac Traps Triggered 11 | . 1 . . . 2 5 1 . . 1 . . 1 Indirectly . | . . . . . . . . . . . . . . Trap Hack Attempts . | . . . . . . . . . . . . . . Triggered . | . . . . . . . . . . . . . . Disarmed . | . . . . . . . . . . . . . . Reprogrammed . | . . . . . . . . . . . . . . Reused . | . . . . . . . . . . . . . . Traps Extracted . | . . . . . . . . . . . . . . Installed . | . . . . . . . . . . . . . . Triggered 1 | . . . . . . . . . . 1 . . . Machines | -11 -10 -10 -10 -9 -8 -8 -8 -8 -7 -7 -6 -6 -5 ---------- Run | Scr Mat Min Exi Min Mat Gar Mat Gar Fac Gar Fac Gar Fac Machines Disabled 13 | . 1 . . . 2 . 1 . . 1 . 3 5 Max in Single Turn 4 | . 1 . . . 2 . 1 . . 1 . 1 4 Garrison Access 2 | . . . . . . . . . . . . . 2 Garrison Relay 3 | . . . . . . . . . . 1 . 2 . Machines Sabotaged . | . . . . . . . . . . . . . . Garrisons Compromised . | . . . . . . . . . . . . . . Overloaded Fab Kills . | . . . . . . . . . . . . . . Fab Network Shutdowns . | . . . . . . . . . . . . . . Hacking | -11 -10 -10 -10 -9 -8 -8 -8 -8 -7 -7 -6 -6 -5 --------- Run | Scr Mat Min Exi Min Mat Gar Mat Gar Fac Gar Fac Gar Fac Machines Accessed 27 | . 3 . 1 . 10 . 3 . 1 . 3 . 6 Terminals 17 | . 2 . . . 9 . 2 . . . 2 . 2 Fabricators 1 | . . . . . . . . . . . . . 1 Repair Stations 1 | . . . . . . . . . . . . . 1 Recycling Units 1 | . 1 . . . . . . . . . . . . Scanalyzers . | . . . . . . . . . . . . . . Garrison Access 6 | . . . . . 1 . 1 . 1 . 1 . 2 Total Hacks 68 | . 10 . 1 . 31 . 4 . 1 . 6 . 15 Successful 39 | . 4 . 1 . 17 . 2 . 1 . 5 . 9 Failed 28 | . 6 . . . 13 . 2 . . . 1 . 6 Catastrophic . | . . . . . . . . . . . . . . Database Lockouts 1 | . . . . . 1 . . . . . . . . Manual 47 | . 8 . 1 . 25 . 3 . . . 5 . 5 Terminals 52 | . 8 . . . 30 . 3 . . . 5 . 6 Fabricators 3 | . . . . . . . . . . . . . 3 Repair Stations 4 | . . . . . . . . . . . . . 4 Recycling Units 2 | . 2 . . . . . . . . . . . . Scanalyzers . | . . . . . . . . . . . . . . Garrison Access 6 | . . . . . 1 . 1 . 1 . 1 . 2 Terminal Hacks 15 | . 1 . 1 . 9 . . . . . 2 . 2 Record 1 | . . . . . 1 . . . . . . . . Part Schematic 2 | . . . . . 1 . . . . . 1 . . Robot Analysis 1 | . . . . . 1 . . . . . . . . Prototype ID Bank 1 | . 1 . . . . . . . . . . . . Branch Access Points 1 | . . . . . . . . . . . . . 1 Terminal Index 2 | . . . . . 1 . . . . . 1 . . Alert Level 1 | . . . . . 1 . . . . . . . . Unreport Threat 2 | . . . . . 2 . . . . . . . . Registered Components 1 | . . . . . . . . . . . . . 1 Zone Layout 2 | . . . . . 2 . . . . . . . . EX-Prototype ID Bank 1 | . . . 1 . . . . . . . . . . Fabricator Hacks 2 | . . . . . . . . . . . . . 2 Load Schematic 1 | . . . . . . . . . . . . . 1 Build 1 | . . . . . . . . . . . . . 1 Repair Station Hacks 2 | . . . . . . . . . . . . . 2 Scan Component 1 | . . . . . . . . . . . . . 1 Repair 1 | . . . . . . . . . . . . . 1 Recycling Unit Hacks . | . . . . . . . . . . . . . . Scanalyzer . | . . . . . . . . . . . . . . Garrison Access Hacks 6 | . . . . . 1 . 1 . 1 . 1 . 2 Unlock Access 4 | . . . . . 1 . 1 . 1 . 1 . . Seal Access 2 | . . . . . . . . . . . . . 2 Unauthorized Hacks 14 | . 3 . . . 7 . 1 . . . 2 . 1 Terminals 14 | . 3 . . . 7 . 1 . . . 2 . 1 Track 5 | . 1 . . . 3 . . . . . 1 . . Assimilate 1 | . . . . . 1 . . . . . . . . Botnet 7 | . 2 . . . 2 . 1 . . . 1 . 1 Operators 1 | . . . . . 1 . . . . . . . . Fabricators . | . . . . . . . . . . . . . . Repair Stations . | . . . . . . . . . . . . . . Recycling Units . | . . . . . . . . . . . . . . Scanalyzers . | . . . . . . . . . . . . . . Garrison Access . | . . . . . . . . . . . . . . Data Cores Recovered . | . . . . . . . . . . . . . . Used . | . . . . . . . . . . . . . . Hacking Detections 21 | . 3 . . . 9 . 2 . 1 . 3 . 3 Full Trace Events 2 | . . . . . 1 . . . . . . . 1 Feedback Events . | . . . . . . . . . . . . . . Feedback Blocked . | . . . . . . . . . . . . . . Robot Schematics Acquired . | . . . . . . . . . . . . . . Robots Built . | . . . . . . . . . . . . . . Matter . | . . . . . . . . . . . . . . Time . | . . . . . . . . . . . . . . Total Robot Build Rating . | . . . . . . . . . . . . . . Part Schematics Acquired 2 | . . . . . 1 . . . . . 1 . . Parts Built 1 | . . . . . . . . . . . . . 1 Matter 168 | . . . . . . . . . . . . . 168 Time 84 | . . . . . . . . . . . . . 84 Total Part Build Rating 4 | . . . . . . . . . . . . . 4 Parts Repaired 1 | . . . . . . . . . . . . . 1 Time 26 | . . . . . . . . . . . . . 26 Parts Recycled . | . . . . . . . . . . . . . . Recycled Matter . | . . . . . . . . . . . . . . Retrieved Matter . | . . . . . . . . . . . . . . Retrieved Components . | . . . . . . . . . . . . . . Parts Scanalyzed . | . . . . . . . . . . . . . . Part Schematics Acquired . | . . . . . . . . . . . . . . Parts Damaged . | . . . . . . . . . . . . . . Bothacking | -11 -10 -10 -10 -9 -8 -8 -8 -8 -7 -7 -6 -6 -5 ------------ Run | Scr Mat Min Exi Min Mat Gar Mat Gar Fac Gar Fac Gar Fac Used RIF Installer 4 | . . . . . . 1 . 1 . 1 . 1 . Coupler Efficiency 1 | . . . . . . . . . . . . 1 . Threat Obfuscator 1 | . . . . . . . . 1 . . . . . Autooverride 1 | . . . . . . . . . . 1 . . . Robots Hacked 4 | . . . . . . . . . . . 1 . 3 Non-combat 4 | . . . . . . . . . . . 1 . 3 Combat . | . . . . . . . . . . . . . . Robot Hacks Applied 4 | . . . . . . . . . . . 1 . 3 map_route 4 | . . . . . . . . . . . 1 . 3 Relay Couplers Released 9 | . . . . . . . . . . 3 . 6 . Machine Destruction 9 | . . . . . . . . . . 3 . 6 . Attached 2 | . . . . . . . . . . . 1 . 1 Robots Rewired . | . . . . . . . . . . . . . . Allies Hacked . | . . . . . . . . . . . . . . Hacks Repelled . | . . . . . . . . . . . . . . Allies | -11 -10 -10 -10 -9 -8 -8 -8 -8 -7 -7 -6 -6 -5 -------- Run | Scr Mat Min Exi Min Mat Gar Mat Gar Fac Gar Fac Gar Fac Total Allies 2 | . . 1 . . 1 . . . . . . . . Largest Group 1 | . . 1 . . 1 . . . . . . . . Highest-Rated Group 31 | . . 31 . . 10 . . . . . . . . Highest-Rated Ally 31 | . . 31 . . 10 . . . . . . . . Total Orders 2 | . . . . . 2 . . . . . . . . STAY 1 | . . . . . 1 . . . . . . . . FOLLOW 1 | . . . . . 1 . . . . . . . . Ally Attacks 10 | . . 10 . . . . . . . . . . . Total Damage 145 | . . 145 . . . . . . . . . . . Kills 1 | . . 1 . . . . . . . . . . . Allies Corrupted . | . . . . . . . . . . . . . . Allies Melted . | . . . . . . . . . . . . . . Intel | -11 -10 -10 -10 -9 -8 -8 -8 -8 -7 -7 -6 -6 -5 ------- Run | Scr Mat Min Exi Min Mat Gar Mat Gar Fac Gar Fac Gar Fac Robot Analysis Total 1 | . . . . . 1 . . . . . . . . Derelict Logs Recovered 1 | . . 1 . . . . . . . . . . . Drone Launches . | . . . . . . . . . . . . . . Drone Recoveries . | . . . . . . . . . . . . . . Exploration | -11 -10 -10 -10 -9 -8 -8 -8 -8 -7 -7 -6 -6 -5 ------------- Run | Scr Mat Min Exi Min Mat Gar Mat Gar Fac Gar Fac Gar Fac Turns Passed 6178 | 137 384 227 420 229 1101 475 181 218 252 466 515 606 967 Spaces Moved 3131 | 61 184 115 259 125 518 248 96 119 139 232 279 307 449 Core 4 | 4 . . . . . . . . . . . . . Treads 3056 | 57 184 115 259 125 518 248 96 119 139 232 279 307 378 Legs 71 | . . . . . . . . . . . . . 71 Wheels . | . . . . . . . . . . . . . . Hover . | . . . . . . . . . . . . . . Flight . | . . . . . . . . . . . . . . Fastest Speed 50 | 50 160 160 160 160 155 160 160 160 160 160 160 160 150 Average Speed 160 | 152 160 160 160 160 156 160 160 160 160 160 160 160 169 Slowest Speed 200 | 160 160 160 160 160 200 160 160 160 160 180 160 160 180 Overloaded Moves . | . . . . . . . . . . . . . . Propulsion Burnouts . | . . . . . . . . . . . . . . Robots Hopped . | . . . . . . . . . . . . . . Cave-ins Triggered . | . . . . . . . . . . . . . . Exploration Rate (%) 33 | 4 45 31 68 26 49 52 11 34 6 46 10 69 17 Regions Visited 13 Branch Regions 3 Pre-discovered Areas . | . . . . . . . . . . . . . . Known Exits Taken 4 | . . . . . 1 . 1 . 1 . 1 . . Unknown Exits Taken 5 | 1 1 1 1 1 . . . . . . . . . Scrap Searched 1 | . . . . 1 . . . . . . . . . Spaces Dug 17 | . . 3 . . 8 . . . . . 1 . 5 Terrain Destroyed 210 | 5 5 21 . . 23 63 14 . . 3 1 41 34 Melee 6 | . . . . . . . . . . . 1 . 5 Projectile 22 | . . 3 . . 10 . 1 . . . . . 8 AOE 182 | 5 5 18 . . 13 63 13 . . 3 . 41 21 Terrain Rammed . | . . . . . . . . . . . . . . Walls Destroyed . | . . . . . . . . . . . . . . Machines Disabled . | . . . . . . . . . . . . . . Actions | -11 -10 -10 -10 -9 -8 -8 -8 -8 -7 -7 -6 -6 -5 --------- Run | Scr Mat Min Exi Min Mat Gar Mat Gar Fac Gar Fac Gar Fac Total 3798 | 82 228 135 265 138 680 296 116 134 162 283 323 376 580 Wait 60 | . . 1 . . 17 1 2 4 1 . . . 34 Move 3114 | 60 183 114 258 124 517 246 95 117 138 230 278 305 449 Hop . | . . . . . . . . . . . . . . Pick Up 75 | 5 9 . 3 . 18 8 2 . 5 2 5 9 9 Fast Attach 38 | 6 . 1 . . 18 2 . 1 3 . 2 . 5 Attach 46 | 1 2 1 . . 11 7 2 . 4 1 4 7 6 Detach 11 | . . 1 . . 5 . . . 1 . 2 . 2 Swap 122 | . 3 6 2 . 15 9 5 3 4 10 15 23 27 Drop 55 | . 6 . 2 . 16 6 4 1 3 3 5 3 6 Fire 264 | 10 24 10 . 13 63 17 6 8 3 35 11 29 35 Melee 6 | . . . . . . . . . . . 1 . 5 Ram . | . . . . . . . . . . . . . . Kick . | . . . . . . . . . . . . . . Crush 5 | . 1 1 . 1 . . . . . . . . 2 Escape Stasis 2 | . . . . . . . . . . 2 . . . Rewire . | . . . . . . . . . . . . . . Trap . | . . . . . . . . . . . . . . Miscellaneous . | . . . . . . . . . . . . . . Route ------- -11/Scrapyard -10/Materials (discovered 2 exits: [*Mat] / [*Min]) -10/Mines -10/Exiles (discovered 2 exits: [*Min x2]) -9/Mines -8/Materials (discovered 3 exits: *Fac x2 / Gar) -8/Garrison (discovered 2 exits: *Mat x2) -8/Materials -8/Garrison -7/Factory -7/Garrison -6/Factory (discovered 2 exits: *Fac / Gar) -6/Garrison (discovered 2 exits: *Fac x2) -5/Factory (discovered 5 exits: [Fac] / *Upp x2 / Ext x2) History --------- Turn | Location | Event 13 | -11/Scrapyard | Discovered new exit (range 16) 138 | -11/Scrapyard | Entered Materials 301 | -10/Materials | Discovered new exit (range 16) 330 | -10/Materials | Build established: Mutant 402 | -10/Materials | Discovered new exit (range 7) 522 | -10/Materials | Entered Mines 555 | -10/Mines | Learned Materials stockpile data 558 | -10/Mines | Met a Derelict testing a Signal Generator 637 | -10/Mines | Found a damaged Exp. Sensor Array with a note attached 641 | -10/Mines | Assembled infested the area 642 | -10/Mines | Found Prototype Device 642 | -10/Mines | Identified Exp. Sensor Array 743 | -10/Mines | Deemed a non-threat by the Exiles lab entrance 743 | -10/Mines | Discovered new exit (range 5) 749 | -10/Mines | Entered Exiles 773 | -10/Exiles | Discovered new exit (range 15) 793 | -10/Exiles | Met 8R-AWN 819 | -10/Exiles | Met EX-HEX 862 | -10/Exiles | Met EX-BIN 881 | -10/Exiles | Aligned with FarCom system 883 | -10/Exiles | Given EX-Vault access code 919 | -10/Exiles | Opened EX-Vault 929 | -10/Exiles | Found Field Lobotomy Kit 962 | -10/Exiles | Warned to stay clear of 0b10 Research branches 1070 | -10/Exiles | Met EX-DEC 1156 | -10/Exiles | Discovered new exit (range 10) 1169 | -10/Exiles | Left Exiles lab with Field Lobotomy Kit 1169 | -10/Exiles | Entered Mines 1248 | -9/Mines | Discovered new exit (range 8) 1398 | -9/Mines | Entered Materials 1398 | -8/Materials | Evolved 4 slots: Propulsion x1, Utility x2, Weapon x1 1585 | -8/Materials | Central database locked down 1596 | -8/Materials | Discovered new exit (range 17) 2272 | -8/Materials | Discovered new exit (range 14) 2410 | -8/Materials | Garrison activated, responded to threat 2497 | -8/Materials | Identified exit to Garrison 2499 | -8/Materials | Entered Garrison 2552 | -8/Garrison | Lost 4 parts (1p3w) 2702 | -8/Garrison | Build established: Scavenger-Skirmisher 2710 | -8/Garrison | Triggered checkpoint 2773 | -8/Garrison | Discovered new exit (range 8) 2824 | -8/Garrison | Triggered checkpoint 2926 | -8/Garrison | Discovered new exit (range 16) 2966 | -8/Garrison | Installed Relay Interface Framework 2974 | -8/Garrison | Entered Materials 3154 | -8/Materials | Identified exit to Garrison 3155 | -8/Materials | Entered Garrison 3163 | -8/Garrison | Expanded RIF knowledge: Threat Obfuscation 3240 | -8/Garrison | Triggered checkpoint 3360 | -8/Garrison | Discovered new exit (range 8) 3373 | -8/Garrison | Entered Factory 3373 | -7/Factory | Evolved 2 slots: Propulsion x1, Utility x1 3623 | -7/Factory | Identified exit to Garrison 3625 | -7/Factory | Entered Garrison 3633 | -7/Garrison | Expanded RIF knowledge: Autooverride 3674 | -7/Garrison | Triggered checkpoint 3701 | -7/Garrison | Garrison Relay disabled 3766 | -7/Garrison | Triggered checkpoint 3779 | -7/Garrison | Triggered checkpoint 4078 | -7/Garrison | Discovered new exit (range 8) 4091 | -7/Garrison | Entered Factory 4091 | -6/Factory | Evolved 2 slots: Utility x2 4226 | -6/Factory | Discovered new exit (range 11) 4277 | -6/Factory | Identified exit to Factory 4603 | -6/Factory | Identified exit to Garrison 4606 | -6/Factory | Entered Garrison 4634 | -6/Garrison | Triggered checkpoint 4681 | -6/Garrison | Garrison Relay disabled 4735 | -6/Garrison | Triggered checkpoint 4752 | -6/Garrison | Triggered checkpoint 4752 | -6/Garrison | Triggered checkpoint 4803 | -6/Garrison | Destroyed 9 combat bots 4867 | -6/Garrison | Triggered checkpoint 4897 | -6/Garrison | Lost 3 parts (1n2w) 4911 | -6/Garrison | Discovered exit to Factory (range 11) 5095 | -6/Garrison | Discovered exit to Factory (range 13) 5108 | -6/Garrison | Triggered checkpoint 5136 | -6/Garrison | Garrison Relay disabled 5204 | -6/Garrison | Expanded RIF knowledge: Coupler Efficiency 5212 | -6/Garrison | Entered Factory 5212 | -5/Factory | Evolved 2 slots: Power x1, Utility x1 5378 | -5/Factory | Discovered new exit (range 88) 5537 | -5/Factory | Lost 4 parts (3n1w) 5602 | -5/Factory | Discovered new exit (range 6) 5683 | -5/Factory | Identified exit to Upper Caves 5683 | -5/Factory | Identified exit to Extension 5786 | -5/Factory | Repaired Lgt. Treads 5828 | -5/Factory | Fabricated Lrn. Terrain Scanner? 6149 | -5/Factory | Build established: Hauler-Skirmisher 6179 | -5/Factory | Self-destructed Last Messages --------------- 05852_ Slug penetrates G-50 Soldier. 05852_ G-50 Soldier suffers critical hit. 05852_ Destroyed Hvy. Laser. 05852_ Slug penetrates G-50 Soldier. 05857_ Slug penetrates Wall. 05860_ Slug penetrates Fabricator. 05860_ Fabricator disabled. 05860_ Slug penetrates Wall. 05863_ Slug penetrates Nuclear Reactor. 05866_ Slug penetrates G-50 Soldier. 05868_ Slug penetrates Fabricator. 05868_ Slug penetrates Nuclear Reactor. 05871_ Slug penetrates G-50 Soldier. 05871_ G-50 Soldier destroyed. 05871_ Slug penetrates Wall. 05873_ Nuclear Reactor explodes. 05874_ The unstable cave ceiling collapses. 06077_ Slammed into K-01 Serf. 06128_ Dropped Flak Gun. 06128_ Acquired Flak Gun. Map ----- +----------------------------------------------------+ | #?????# ### # #? | | " #?????# #### #?###+########## #? | | " #?????# #??# #?# ! # #? | | ? #?????# #??### ###?# # #? | | #?????# #????# #???# # #? | | ?????#?????# #????# #???# # #? | | ???????????# #????# #???# # # | | ???????????# ####????# #???# ! # # | | ???????????# #???????# #???# + # | | ???????????# #???????# #???# # # | | ???????????# #???????# #???# ! # # | | ???????????# #???????# #???# # ## | | ???????????# #???????# #???# # | | ???????????# #??????? ???# # | | ???????????# #????????" ???######+######## | | ???????????# #????????"T ???? #??????# | | ##########?# #???????? ???######+####???# | | # ! #?# #???????? ?????# ????######## | | # ### ###??????# #?????# ??? ????????# | | # # #??????# #?????#???? ????????# | | # # ######## ####??????????????????# ] | | # + #??????????????????# | | # [# ########### #??????????????????# | | # # #?????????# #??????????????????# | | # ## ############+#??????????????????# | | # ## # @ #??????????????????#??? | | ########### + """"""""" #?????????????????????? | | ??#???????# # ]#?????????????????????? | | #######???# # """"""""" #?????????????????????? | | #???# # #?????????????????????? | | ##### # """"""""" #?????????????????????? | | # #?????????????????????? | | ^ # """"""""" #?????????????????????? | | ^ #? ]#?????????????????????? | | #########???""""""" #?????????????????????? | | #???????????? !#?????????????????????? | | ##+####???????????? #?????????????????????? | | ???????????????########?????????????????????? | | ??????????????????????????????????????????? | | ! ????????????????????????????????????????? | | ??????????????????????????????????????? | | #????????????????????????????????????? | | #????????????????????????????????????? | | #????????????????????????????????????? | | #????????????????????????????????????? | | #############????????????????????????????????????? | | | | | | | | | +----------------------------------------------------+ Best States ------------- Heat Dissipation 54 Energy Generation 18 Energy Capacity 310 Matter Stores 300 Matter Capacity 300 Sight Range 22 Robot Scan Range 30 Terrain Scan Range 24 Terrain Scan Density 110 Armor Coverage 225 Resistance: KI 20 Resistance: TH 20 Weapon Cycling 15 Evasion (%) 40 Recoil Reduction 4 Offensive Hacking 10 Relay Coupler Types 38 Relay Coupler Value 1 Item Schematics ----------------- Imp. Utility Shielding | -8/Materials | Hacked Lrn. Terrain Scanner | -6/Factory | Hacked Robot Schematics ------------------ None Fabricated ------------ Lrn. Terrain Scanner | x1 | -5/Factory Alien Tech Used ----------------- None Achievements -------------- None Challenges ------------ None Game ------ Seed GlidesysInsulatedExtractor Manual? 0 Play Time 01:32:59 Cumulative 361.1 hours Start 2021.11.20 @ 22:21:56 End 2021.11.20 @ 23:57:02 Sessions 1 Manual Loads 0 Difficulty Rogue Special Mode None Game No. 182 Rogue 64 Adventurer 116 Explorer 2 Win Type - Total 31 Types 28/2/0/0/0/0/0/0/1 Lore% 55 Gallery% 81 Achievement% 59 Wizard Run 0 Options --------- ASCII 0 Keyboard 1 Movement Numpad Keybinds 0 Fullscreen 1 Font 36/TerminusFine Map View 76x50 Tactical HUD 1 Map Filters NONE Filters NONE Steam 1 RUN: 52cb3eb7-8414-4313-aca3-18e57466e308